bitfinex/quotes_BTCUSD_20241226
["timestamp","ask_amount","ask_price","bid_price","bid_amount"]
[1735201937661,0.10528587,96201.0,96200.0,0.0045291]
[1735201937882,0.10398632,96201.0,96200.0,0.0045291]
[1735201938093,0.166278,96224.0,96200.0,0.00504942]
[1735201938299,0.16629,96217.0,96201.0,0.166318]
[1735201938505,0.25528565,96216.0,96201.0,0.166318]
[1735201938883,0.00129933,96215.0,96206.0,0.166308]
[1735201939090,0.10398632,96214.0,96206.0,0.166308]
[1735201939286,0.00129926,96213.0,96200.0,0.00104942]
[1735201939505,0.10528565,96212.0,96200.0,0.00104942]
[1735201939721,0.10398632,96207.0,96200.0,0.00104942]
[1735201940071,0.00129949,96206.0,96201.0,0.001]
[1735201940279,0.02552856,96213.0,96201.0,0.001]
[1735201940280,0.10398632,96205.0,96201.0,0.001]
[1735201940486,0.10398632,96205.0,96202.0,0.166316]
[1735201940913,0.10398632,96205.0,96201.0,0.001]
[1735201941092,0.62030232,96202.0,96201.0,0.001]
[1735201941303,0.35,96201.0,96200.0,0.00104942]
[1735201941495,0.332702,96182.0,96170.0,8.55e-05]
[1735201941695,0.166354,96180.0,96170.0,8.55e-05]
[1735201941833,0.1682355,96179.0,96170.0,8.55e-05]
[1735201942651,0.1682355,96179.0,96150.0,0.166405]
[1735201942846,0.10398632,96173.0,96145.0,0.0765]
[1735201943050,0.33403695,96172.0,96152.0,0.166403]
[1735201943268,0.33403695,96172.0,96141.0,0.166421]
[1735201943269,0.166388,96161.0,96141.0,0.166421]
[1735201943481,0.16232381,96160.0,96141.0,0.166421]
[1735201943694,0.16232381,96160.0,96146.0,0.166412]
[1735201943902,0.166391,96159.0,96141.0,0.166421]
[1735201944107,0.10528638,96158.0,96147.0,0.166411]
[1735201944527,0.10528638,96158.0,96141.0,0.166421]
[1735201944765,0.166394,96157.0,96141.0,0.166421]
[1735201944977,0.10528638,96156.0,96151.0,0.0040856]
[1735201945177,0.27168238,96156.0,96151.0,0.0070856]
[1735201945373,0.10398632,96156.0,96151.0,0.0030856]
[1735201945577,0.00051929,96159.0,96151.0,0.0030856]
[1735201945578,0.00051929,96159.0,96158.0,0.166392]
[1735201945782,0.10450561,96159.0,96158.0,0.166392]
[1735201945995,0.166392,96158.0,96151.0,0.0030856]
[1735201946244,0.10450561,96159.0,96151.0,0.0030856]
[1735201946245,0.10398632,96157.0,96151.0,0.0080856]
[1735201946460,0.00051929,96159.0,96158.0,0.166392]
[1735201946658,0.00051929,96159.0,96158.0,0.163392]
[1735201948016,0.10450561,96159.0,96151.0,8.56e-05]
[1735201948219,0.00051929,96159.0,96152.0,0.166402]
[1735201948442,0.00051929,96159.0,96158.0,0.169392]
[1735201948655,0.10450561,96159.0,96153.0,0.1664]
[1735201948818,0.10398632,96158.0,96153.0,0.1664]
[1735201949022,0.10398632,96158.0,96153.0,0.332801]
[1735201949496,0.00051929,96159.0,96153.0,0.332801]
[1735201951054,0.00051929,96159.0,96153.0,0.333801]
[1735201951297,0.10398632,96158.0,96151.0,8.56e-05]
[1735201951467,0.10528639,96158.0,96153.0,0.001]
[1735201951964,0.10528639,96158.0,96151.0,8.56e-05]
[1735201951965,0.166394,96157.0,96151.0,8.56e-05]
[1735201952219,0.10398632,96156.0,96153.0,0.001]
[1735201952430,0.09574983,96156.0,96151.0,8.56e-05]
[1735201952843,0.00129756,96155.0,96151.0,8.56e-05]
[1735201952993,0.166401,96153.0,96151.0,8.56e-05]
[1735201953191,0.10528388,96152.0,96151.0,8.56e-05]
[1735201954194,0.00051929,96159.0,96152.0,0.166403]
[1735201954386,0.166394,96157.0,96151.0,8.56e-05]
[1735201954594,0.10528388,96156.0,96151.0,8.56e-05]
[1735201955159,0.00129756,96155.0,96151.0,8.56e-05]
[1735201955332,0.00051929,96159.0,96151.0,8.56e-05]
[1735201955333,0.10398632,96154.0,96151.0,8.56e-05]
[1735201957334,0.10598632,96154.0,96151.0,0.1664886]
[1735201957539,0.10598632,96154.0,96151.0,0.13248858]
[1735201957802,0.10598632,96154.0,96149.0,8.56e-05]
[1735201957956,0.13127568,96154.0,96150.0,0.166406]
[1735201958162,0.166403,96152.0,96149.0,8.56e-05]
[1735201958371,0.42039232,96150.0,96149.0,8.56e-05]
[1735201958740,0.64729232,96150.0,96149.0,2.832e-05]
[1735201958949,0.85127864,96150.0,96149.0,2.832e-05]
[1735201959267,0.466444,96128.0,96122.0,8.56e-05]
[1735201959463,0.40398632,96128.0,96122.0,8.56e-05]
[1735201959962,0.10398632,96128.0,96122.0,8.56e-05]
[1735201960172,0.10528388,96128.0,96122.0,8.56e-05]
[1735201960373,0.14234347,96128.0,96122.0,8.56e-05]
[1735201960832,0.10398632,96128.0,96127.0,0.0010857]
[1735201961030,0.10398632,96128.0,96127.0,8.57e-05]
[1735201961230,0.10798632,96128.0,96127.0,8.57e-05]
[1735201961433,0.21682626,96128.0,96127.0,0.0010857]
[1735201961631,0.2036034,96128.0,96127.0,8.57e-05]
[1735201961982,0.23199447,96128.0,96127.0,8.57e-05]
[1735201962204,0.23499447,96128.0,96127.0,8.57e-05]
[1735201962421,0.26369296,96128.0,96127.0,8.57e-05]
[1735201962580,0.16369296,96128.0,96127.0,8.57e-05]
[1735201962784,0.266446,96127.0,96126.0,0.0104288]
[1735201962986,0.37043232,96127.0,96126.0,0.0104288]
[1735201963193,0.42752188,96127.0,96126.0,0.0104288]
[1735201963399,0.39882339,96127.0,96126.0,0.0104288]
[1735201963600,0.51082188,96127.0,96126.0,0.0104288]
[1735201963966,0.66082188,96127.0,96126.0,0.0104288]
[1735201964636,0.67446558,96127.0,96126.0,0.0064388]
[1735201964832,0.64796182,96127.0,96126.0,0.0054388]
[1735201965034,0.49796182,96127.0,96126.0,0.0054388]
[1735201965264,0.41466182,96127.0,96126.0,0.0054388]
[1735201965830,0.1,96125.0,96122.0,8.56e-05]
[1735201966028,0.1,96125.0,96050.0,0.0484]
[1735201966029,0.2,96111.0,96050.0,0.0484]
[1735201966244,0.78524551,96111.0,96050.0,0.0484]
[1735201966443,0.8169122,96111.0,96071.0,0.166542]
[1735201966820,0.8378225,96111.0,96071.0,0.166542]
[1735201967120,0.35,96104.0,96071.0,0.166542]
[1735201967327,0.5169122,96104.0,96071.0,0.166542]
[1735201967526,0.5169122,96104.0,96043.0,0.39060682]
[1735201967527,0.5,96001.0,96000.0,0.0273876]
[1735201967903,0.3,95974.0,95959.0,0.0819834]
[1735201968029,0.10787405,96007.0,95959.0,0.0819834]
[1735201968030,0.3,95989.0,95959.0,0.08232829]
[1735201968231,0.3,95977.0,95961.0,0.00034489]
[1735201968458,0.10398632,95976.0,95973.0,0.166713]
[1735201968660,0.3,95993.0,95974.0,0.00034489]
[1735201968925,0.10398632,95991.0,95984.0,0.166694]
[1735201969381,0.3,95993.0,95964.0,0.00061929]
[1735201969382,0.40398632,95985.0,95964.0,0.00061929]
[1735201969531,0.28092755,95985.0,95972.0,0.00034489]
[1735201969743,0.28092755,95985.0,95984.0,0.16703889]
[1735201969744,0.17694123,95985.0,95984.0,0.16703889]
[1735201970368,0.17694123,95986.0,95984.0,0.16703889]
[1735201970647,0.17694123,95986.0,95985.0,0.00034489]
[1735201971453,0.3,96008.0,95975.0,0.16671]
[1735201971454,0.08821368,96007.0,96004.0,0.166659]
[1735201971654,0.1922,96007.0,96006.0,0.166656]
[1735201972053,0.10398632,96007.0,96006.0,0.17133771]
[1735201972509,0.08821368,96011.0,96010.0,0.00034489]
[1735201972638,0.08821368,96011.0,96010.0,0.00138642]
[1735201972837,0.1922,96011.0,96008.0,0.1]
[1735201973037,0.3,96008.0,96007.0,0.166654]
[1735201973233,0.40398632,96008.0,96006.0,0.00051929]
[1735201973446,0.08821368,96022.0,96006.0,0.00051929]
[1735201973447,0.006,96007.0,96006.0,0.00086418]
[1735201973648,0.08821368,96022.0,96013.0,0.166643]
[1735201973859,0.17694123,96028.0,96006.0,0.00049152]
[1735201973860,0.3,96014.0,96006.0,0.00049152]
[1735201974063,0.004,96011.0,96005.0,0.333313]
[1735201974394,0.00051801,96014.0,96005.0,0.166656]
[1735201974560,0.006,96007.0,96006.0,0.166656]
[1735201974998,0.005,96007.0,96006.0,0.166656]
[1735201975241,0.005,96007.0,96006.0,0.116656]
[1735201975569,0.10898632,96007.0,96006.0,0.166656]
[1735201975771,0.10398632,96007.0,96006.0,0.166656]
[1735201976402,0.001,96011.0,96003.0,0.16666]
[1735201976659,0.001,96011.0,96007.0,0.166653]
[1735201976875,0.00051801,96014.0,96010.0,0.166648]
[1735201977205,0.00051801,96014.0,96010.0,0.333296]
[1735201977607,0.00051801,96014.0,96010.0,0.166648]
[1735201977816,0.001,96011.0,96010.0,0.166648]
[1735201978368,0.00051801,96014.0,96010.0,0.333296]
[1735201978778,0.00051801,96014.0,96010.0,0.328296]
[1735201979357,0.10398632,96013.0,96011.0,0.166647]
[1735201979929,0.00051801,96014.0,96011.0,0.166647]
[1735201980638,0.00051801,96014.0,96012.0,0.0010415]
[1735201980639,0.001,96013.0,96012.0,0.0010415]
[1735201980873,0.001,96013.0,96011.0,0.166647]
[1735201981343,0.10498632,96013.0,96011.0,0.166647]
[1735201981795,0.001,96013.0,96011.0,0.166647]
[1735201982202,0.02919519,96012.0,96011.0,0.173647]
[1735201982413,0.02919519,96012.0,96011.0,0.169647]
[1735201982623,0.02919519,96012.0,96011.0,0.14264698]
[1735201983140,0.02919519,96012.0,96011.0,0.13564698]
[1735201983361,0.02919519,96012.0,96011.0,0.13964698]
[1735201983681,0.02919519,96012.0,96011.0,0.13264698]
[1735201983917,0.02919519,96012.0,96011.0,0.13964698]
[1735201984111,0.02919519,96012.0,96011.0,0.14064698]
[1735201984561,0.02919519,96012.0,96011.0,0.13964698]
[1735201984889,0.02919519,96012.0,96011.0,0.14164698]
[1735201985106,0.02919519,96012.0,96011.0,0.13464698]
[1735201985519,0.02919519,96012.0,96011.0,0.14064698]
[1735201985745,0.02919519,96012.0,96011.0,0.13464698]
[1735201985951,2e-07,96014.0,96013.0,0.1]
[1735201986324,2e-07,96014.0,96013.0,0.30212759]
[1735201986526,2e-07,96014.0,96013.0,0.30108632]
[1735201986735,2e-07,96014.0,96011.0,0.1717328]
[1735201986936,0.0001716,96013.0,96011.0,0.1717328]
[1735201987141,0.0001716,96013.0,96011.0,0.1747328]
[1735201987391,0.0001716,96013.0,96011.0,0.17577423]
[1735201987604,0.0001716,96013.0,96012.0,0.06902774]
[1735201987812,0.0001716,96013.0,96012.0,0.00104143]
[1735201988213,6e-07,96013.0,96012.0,0.05508229]
[1735201988438,0.08821368,96064.0,96063.0,0.166557]
[1735201988439,0.02575668,96064.0,96063.0,0.166557]
[1735201988672,0.129743,96064.0,96063.0,0.166557]
[1735201988891,0.02575668,96064.0,96063.0,0.166557]
[1735201989313,0.3,96090.0,96050.0,0.166579]
[1735201989523,0.10398632,96089.0,96070.0,0.166543]
[1735201989728,0.10398632,96089.0,96081.0,0.166524]
[1735201990170,0.1,96084.0,96081.0,0.166524]
[1735201990382,0.1,96079.0,96073.0,0.166539]
[1735201990754,0.10398632,96078.0,96071.0,0.166543]
[1735201990911,0.10398632,96078.0,96071.0,0.333086]
[1735201991116,0.10398632,96078.0,96071.0,0.00015619]
[1735201991322,0.10398632,96078.0,96074.0,0.166537]
[1735201991732,0.1,96079.0,96071.0,0.00015619]
[1735201991934,0.1,96084.0,96083.0,0.166521]
[1735201992166,0.03,96089.0,96088.0,0.166514]
[1735201992323,0.23398632,96089.0,96088.0,0.166514]
[1735201992527,0.23398632,96089.0,96079.0,0.166528]
[1735201992528,0.1,96087.0,96079.0,0.166528]
[1735201992729,0.13398632,96089.0,96071.0,0.00015619]
[1735201992730,0.1,96082.0,96071.0,0.00015619]
[1735201993050,0.20398632,96082.0,96079.0,0.166528]
[1735201993228,0.1,96072.0,96071.0,0.00015619]
[1735201993425,0.20398632,96072.0,96071.0,0.00015619]
[1735201994904,0.3,96078.0,96071.0,0.00015619]
[1735201995122,0.1,96072.0,96071.0,0.00015619]
[1735201995338,0.20398632,96072.0,96071.0,0.00015619]
[1735201995872,0.28378632,96072.0,96071.0,0.00015619]
[1735201996044,0.3,96055.0,96013.0,0.0482]
[1735201996284,0.1,96027.0,96023.0,0.166625]
[1735201996465,0.25398632,96054.0,96013.0,0.0482]
[1735201996466,0.1,96052.0,96048.0,0.166581]
[1735201996668,0.3,96063.0,96048.0,0.166581]
[1735201996669,0.10398632,96051.0,96048.0,0.166581]
[1735201996808,0.13232053,96060.0,96059.0,0.166564]
[1735201997009,0.23630685,96060.0,96055.0,0.166569]
[1735201997211,0.10398632,96059.0,96055.0,0.166569]
[1735201997853,0.10398632,96059.0,96055.0,0.16672533]
[1735201998474,0.10398632,96059.0,96055.0,0.00015633]
[1735201999074,0.1,96056.0,96055.0,0.00015633]
[1735201999278,0.10398632,96056.0,96055.0,0.00015633]
[1735201999593,0.10398632,96056.0,96055.0,0.00115633]
[1735201999796,0.10398632,96056.0,96055.0,0.00015633]
[1735202000232,0.10398632,96056.0,96055.0,0.16672733]
[1735202000655,0.10498632,96056.0,96055.0,0.16672733]
[1735202001098,0.10498632,96056.0,96055.0,0.00015633]
[1735202001262,0.20498632,96056.0,96055.0,0.00015633]
[1735202001659,0.10498632,96056.0,96055.0,0.00015633]
[1735202002427,0.1885654,96059.0,96056.0,0.166569]
[1735202002628,0.001,96056.0,96055.0,0.00015633]
[1735202002829,0.20498632,96056.0,96055.0,0.00015633]
[1735202003275,0.20398632,96056.0,96055.0,0.00015633]
[1735202003853,0.10398632,96056.0,96055.0,0.00015633]
[1735202004083,0.20398632,96056.0,96055.0,0.00015633]
[1735202004282,0.47275436,96056.0,96055.0,0.00015633]
[1735202004484,0.1,96051.0,96050.0,0.166579]
[1735202004658,0.20398632,96051.0,96050.0,0.33331384]
[1735202004861,0.20398632,96051.0,96050.0,0.16673484]
[1735202005127,0.20398632,96051.0,96050.0,0.00015584]
[1735202007058,0.50398632,96051.0,96050.0,0.00015584]
[1735202007262,0.50398632,96051.0,96050.0,0.00115584]
[1735202007697,0.50398632,96051.0,96050.0,0.00015584]
[1735202008604,0.1,96035.0,96034.0,0.166606]
[1735202009109,0.20398632,96035.0,96034.0,0.166606]
[1735202009913,0.10398632,96035.0,96034.0,0.166606]
[1735202010139,0.2224634,96037.0,96035.0,0.166604]
[1735202010374,0.2224634,96037.0,96035.0,0.16764515]
[1735202010574,0.2224634,96037.0,96035.0,0.166604]
[1735202011333,0.00015549,96051.0,96050.0,0.166579]
[1735202012579,0.00015549,96051.0,96050.0,0.166079]
[1735202013008,0.00015549,96051.0,96050.0,0.169079]
[1735202013419,0.00015549,96051.0,96050.0,0.21734523]
[1735202013620,0.00015549,96051.0,96050.0,0.166079]
[1735202013825,0.00015549,96051.0,96050.0,0.16911998]
[1735202014666,0.00015549,96051.0,96050.0,0.17211998]
[1735202014868,4.9e-07,96051.0,96050.0,0.4231063]
[1735202014998,4.9e-07,96051.0,96050.0,0.61817325]
[1735202015203,0.08905489,96066.0,96065.0,0.166553]
[1735202015415,0.08905489,96066.0,96065.0,0.16759382]
[1735202015623,0.08905489,96066.0,96065.0,0.37053932]
[1735202015826,0.11854723,96069.0,96068.0,0.1]
[1735202016000,0.11854723,96069.0,96065.0,0.333106]
[1735202016200,0.11854723,96069.0,96067.0,0.16655]
[1735202016466,0.11854723,96069.0,96068.0,0.00104082]
[1735202016688,0.17810979,96072.0,96067.0,0.16655]
[1735202016878,0.1,96090.0,96065.0,0.166553]
[1735202016879,0.08920422,96084.0,96083.0,0.166522]
[1735202017096,0.08920422,96084.0,96080.0,0.166526]
[1735202017097,0.19319054,96084.0,96080.0,0.166526]
[1735202017315,0.1,96081.0,96080.0,0.166526]
[1735202017510,0.10398632,96081.0,96080.0,0.166526]
[1735202017698,0.20398632,96081.0,96080.0,0.166526]
[1735202017953,0.20398632,96081.0,96080.0,0.14952599]
[1735202018756,0.1,96075.0,96068.0,0.169548]
[1735202018933,0.1,96065.0,96044.0,0.16659]
[1735202019156,0.1,96054.0,96023.0,8.58e-05]
[1735202019327,0.1,96047.0,96025.0,0.166623]
[1735202019533,0.1,96038.0,96025.0,0.166623]
[1735202019708,0.1,96038.0,96033.0,0.166609]
[1735202019916,0.1,96038.0,96033.0,0.166607]
[1735202020319,0.10398632,96037.0,96027.0,0.166619]
[1735202020648,0.17810979,96034.0,96027.0,0.00015549]
[1735202020843,0.1,96028.0,96027.0,0.00015549]
[1735202021045,0.20398632,96028.0,96027.0,0.00015549]
[1735202021664,0.20398632,96028.0,96027.0,0.00215549]
[1735202022076,0.2224634,96029.0,96028.0,0.166618]
[1735202022345,0.32644972,96029.0,96028.0,0.166618]
[1735202023296,0.32644972,96029.0,96027.0,0.00015549]
[1735202023506,0.10398632,96029.0,96028.0,0.166618]
[1735202023920,0.27837926,96032.0,96028.0,0.166618]
[1735202023921,0.27837926,96032.0,96028.0,0.333236]
[1735202024122,0.38236558,96032.0,96028.0,0.333236]
[1735202024458,0.17837926,96031.0,96028.0,0.333236]
[1735202025425,0.13377542,96031.0,96028.0,0.333236]
[1735202025621,0.13377542,96031.0,96028.0,0.166618]
[1735202026063,0.13477542,96031.0,96028.0,0.166618]
[1735202026272,0.001,96031.0,96028.0,0.166618]
[1735202026625,0.1,96032.0,96028.0,0.333235]
[1735202026849,0.001,96031.0,96028.0,0.333235]
[1735202027123,0.001,96031.0,96028.0,0.166617]
[1735202027278,0.13377542,96030.0,96028.0,0.166617]
[1735202027804,0.13377542,96030.0,96028.0,0.13361699]
[1735202028190,0.13377542,96029.0,96028.0,0.13361699]
[1735202029148,0.13377542,96031.0,96028.0,0.13361699]
[1735202031272,0.0891802,96029.0,96028.0,0.13361699]
[1735202031936,0.13377542,96030.0,96028.0,0.13361699]
[1735202032361,0.13377542,96030.0,96029.0,0.00104128]
[1735202032762,0.08918476,96030.0,96029.0,0.00104128]
[1735202033210,0.08918476,96030.0,96028.0,0.13361699]
[1735202033632,0.1,96047.0,96027.0,0.00015549]
[1735202033779,0.10398632,96046.0,96044.0,0.166589]
[1735202034168,0.1,96047.0,96044.0,0.166589]
[1735202034380,0.17837926,96046.0,96044.0,0.166589]
[1735202035187,0.17837926,96046.0,96044.0,0.333179]
[1735202035438,0.18767035,96080.0,96044.0,0.333179]
[1735202035439,0.08919057,96045.0,96044.0,0.333179]
[1735202035643,0.08919057,96045.0,96044.0,0.334179]
[1735202035867,0.19317689,96045.0,96044.0,0.001]
[1735202036115,0.29317689,96045.0,96044.0,0.001]
[1735202036315,0.20398632,96045.0,96044.0,0.001]
[1735202036517,0.19898632,96045.0,96044.0,0.001]
[1735202036935,0.1,96029.0,96028.0,8.58e-05]
[1735202037139,0.20398632,96029.0,96028.0,8.58e-05]
[1735202037340,0.35398632,96029.0,96028.0,8.58e-05]
[1735202037747,0.1,96013.0,96012.0,0.16597109]
[1735202037950,0.1,96012.0,96007.0,0.166654]
[1735202038178,0.20398632,96012.0,96007.0,0.166654]
[1735202038389,0.20398632,96012.0,96000.0,0.176565]
[1735202038597,0.20398632,96012.0,96005.0,0.166656]
[1735202038808,0.20398632,96012.0,96005.0,0.333313]
[1735202039379,0.20498632,96012.0,96005.0,0.166656]
[1735202040317,0.20498632,96012.0,96010.0,0.166647]
[1735202040466,0.001,96012.0,96010.0,0.166647]
[1735202041284,0.30123905,96026.0,96010.0,0.166647]
[1735202041285,0.13355643,96026.0,96025.0,0.288123]
[1735202041644,4.3e-07,96026.0,96025.0,0.49210932]
[1735202041879,0.0001716,96047.0,96033.0,0.1]
[1735202042009,0.16041527,96034.0,96033.0,0.1]
[1735202042227,0.16041527,96034.0,96033.0,0.20398632]
[1735202042627,0.16041527,96034.0,96033.0,0.166609]
[1735202042998,0.0001716,96047.0,96046.0,0.166586]
[1735202044560,0.0001716,96047.0,96046.0,0.167586]
[1735202044762,0.0001716,96047.0,96046.0,0.168586]
[1735202044986,0.0001716,96047.0,96046.0,0.21886731]
[1735202045201,0.33,96071.0,96067.0,0.166548]
[1735202045202,0.05968835,96071.0,96067.0,0.166548]
[1735202045389,0.01820971,96071.0,96070.0,0.15]
[1735202045586,0.17837113,96075.0,96070.0,0.15]
[1735202045587,0.1081119,96075.0,96072.0,0.15]
[1735202045799,0.04100001,96116.0,96081.0,0.05899999]
[1735202045995,0.14117161,96110.0,96109.0,0.166477]
[1735202046199,0.04132794,96110.0,96109.0,0.166477]
[1735202046356,0.10032793,96110.0,96109.0,0.166477]
[1735202046576,0.00032793,96110.0,96109.0,0.166477]
[1735202047787,0.00032793,96110.0,96106.0,0.166481]
[1735202047788,0.14100001,96107.0,96106.0,0.166481]
[1735202048027,0.24498633,96107.0,96106.0,0.166481]
[1735202048714,0.14100001,96103.0,96102.0,0.166488]
[1735202048942,0.04100001,96096.0,96073.0,0.23125081]
[1735202049195,0.0001716,96075.0,96074.0,0.00104067]
[1735202051141,0.0001716,96075.0,96074.0,0.01004067]
[1735202051391,0.0001716,96075.0,96073.0,0.166539]
[1735202051633,0.14498633,96074.0,96073.0,0.166539]
[1735202052132,0.14100001,96069.0,96068.0,0.00030247]
[1735202052353,0.32358633,96069.0,96068.0,0.00030247]
[1735202052556,0.62358633,96069.0,96068.0,0.00030247]
[1735202052768,0.1,96042.0,96041.0,0.166594]
[1735202053014,0.04100001,96036.0,96035.0,0.166604]
[1735202053285,0.04100001,96036.0,96033.0,8.58e-05]
[1735202053286,0.04100001,96034.0,96033.0,8.58e-05]
[1735202053502,0.14498633,96034.0,96033.0,0.00024216]
[1735202054428,0.32518633,96034.0,96033.0,0.00024216]
[1735202054629,0.77518633,96034.0,96033.0,0.00024216]
[1735202054902,0.77518633,96034.0,96033.0,0.00124216]
[1735202055881,0.14498633,96034.0,96033.0,0.00324216]
[1735202056084,0.24498633,96034.0,96033.0,0.00324216]
[1735202056289,0.24498633,96034.0,96033.0,0.00024216]
[1735202056469,0.24498633,96034.0,96033.0,0.00124216]
[1735202056668,0.39498633,96034.0,96033.0,0.00124216]
[1735202056897,0.14498633,96034.0,96033.0,0.00024216]
[1735202057344,0.08897914,96050.0,96048.0,0.166583]
[1735202057525,0.14100001,96045.0,96044.0,0.166588]
[1735202057734,0.24498633,96045.0,96044.0,0.134588]
[1735202058183,0.04100001,96034.0,96033.0,0.16685116]
[1735202058393,0.14498633,96034.0,96033.0,0.16685116]
[1735202058931,0.14498633,96034.0,96033.0,0.33346016]
[1735202059634,0.08897914,96055.0,96034.0,0.333214]
[1735202059635,0.04100001,96047.0,96034.0,0.333214]
[1735202059841,0.04100001,96047.0,96033.0,0.03358818]
[1735202059842,0.1,96038.0,96035.0,0.166605]
[1735202060522,0.1,96038.0,96035.0,0.33321]
[1735202060728,0.04100001,96053.0,96033.0,0.00024216]
[1735202060933,0.08897914,96060.0,96046.0,0.166586]
[1735202061174,0.08897914,96060.0,96059.0,0.166564]
[1735202062265,0.04100001,96066.0,96065.0,0.166553]
[1735202062468,0.08897914,96073.0,96072.0,0.166541]
[1735202062673,0.23396547,96073.0,96072.0,0.166541]
[1735202063101,0.14498633,96073.0,96072.0,0.166541]
[1735202063424,0.24498633,96073.0,96072.0,0.166541]
[1735202063865,0.14498633,96073.0,96072.0,0.166541]
[1735202064532,0.10398632,96073.0,96072.0,0.166541]
[1735202064944,0.14498633,96073.0,96072.0,0.166541]
[1735202065304,0.14498633,96073.0,96065.0,0.166553]
[1735202065305,0.14100001,96051.0,96004.0,0.1953]
[1735202065507,0.1,96049.0,96033.0,0.00128332]
[1735202065688,0.1,96065.0,96035.0,0.166605]
[1735202065891,0.10398632,96064.0,96063.0,0.166557]
[1735202066095,0.04117161,96075.0,96071.0,0.166543]
[1735202066295,0.3268216,96074.0,96071.0,0.166543]
[1735202066498,0.36782161,96074.0,96071.0,0.166543]
[1735202066720,0.3268216,96074.0,96071.0,0.166543]
[1735202067155,0.36782161,96074.0,96071.0,0.333086]
[1735202067517,0.1,96072.0,96068.0,0.166548]
[1735202067795,0.04100001,96064.0,96063.0,0.001]
[1735202067995,0.04100001,96065.0,96064.0,0.166555]
[1735202068170,0.04100001,96064.0,96063.0,0.001]
[1735202068385,0.04100001,96064.0,96060.0,0.166562]
[1735202068590,0.04100001,96064.0,96060.0,0.16671836]
[1735202068791,0.0001716,96075.0,96060.0,0.16671836]
[1735202068792,0.14100001,96072.0,96071.0,0.166543]
[1735202069469,0.04100001,96072.0,96071.0,0.166543]
[1735202069891,0.1001716,96075.0,96071.0,0.166543]
[1735202070124,0.1001716,96075.0,96071.0,0.333086]
[1735202070264,0.0001716,96075.0,96071.0,0.333086]
[1735202070928,0.04100001,96061.0,96060.0,0.16671636]
[1735202071138,0.14498633,96061.0,96060.0,0.00015636]
[1735202071343,0.24498633,96061.0,96060.0,0.00015636]
[1735202071542,1.04336633,96061.0,96060.0,0.00015636]
[1735202071742,0.04100001,96033.0,96027.0,0.16586016]
[1735202072018,0.14498633,96033.0,96027.0,0.33247816]
[1735202072303,0.1,96030.0,96027.0,0.33247816]
[1735202072568,0.1,96030.0,96003.0,0.05899999]
[1735202072569,0.04100001,96021.0,96018.0,0.166634]
[1735202072807,0.1,96011.0,96010.0,0.166649]
[1735202073793,0.1,96011.0,96010.0,0.16680521]
[1735202074041,0.1,96011.0,96010.0,0.17180521]
[1735202074271,0.1,96011.0,96010.0,0.17380521]
[1735202074522,0.1,96011.0,96010.0,0.34045421]
[1735202074773,0.1,96016.0,96010.0,0.22451583]
[1735202075013,0.1,96025.0,96023.0,0.166626]
[1735202075265,0.2,96016.0,96013.0,0.166644]
[1735202075506,0.30398632,96016.0,96013.0,0.166644]
[1735202076249,0.20398632,96016.0,96015.0,0.16664]
[1735202076685,0.1,96024.0,96013.0,0.003]
[1735202076816,0.1,96024.0,96023.0,0.166626]
[1735202077040,0.1,96033.0,96026.0,0.166619]
[1735202077261,0.20398632,96033.0,96032.0,0.166611]
[1735202077711,0.20398632,96033.0,96032.0,0.161611]
[1735202077938,0.30398632,96033.0,96032.0,0.161611]
[1735202078140,0.20398632,96033.0,96032.0,0.161611]
[1735202080006,0.0001716,96044.0,96040.0,0.166595]
[1735202080430,0.0001716,96044.0,96043.0,0.166592]
[1735202080948,0.10415792,96044.0,96043.0,0.166592]
[1735202081183,0.20415792,96044.0,96043.0,0.166592]
[1735202082059,0.0001716,96044.0,96043.0,0.166592]
[1735202082629,0.0001716,96044.0,96043.0,0.13259198]
[1735202083032,0.0001716,96044.0,96043.0,0.1336331]
[1735202084568,0.0151716,96045.0,96043.0,0.1336331]
[1735202084770,0.0151716,96045.0,96044.0,0.00104099]
[1735202084969,0.13375783,96070.0,96044.0,0.00104099]
[1735202084970,0.1,96070.0,96044.0,0.00104099]
[1735202085267,0.10015624,96070.0,96069.0,0.166546]
[1735202085842,0.20015624,96070.0,96069.0,0.166546]
[1735202086043,0.2,96067.0,96066.0,0.16655]
[1735202086244,0.30398632,96067.0,96066.0,0.16655]
[1735202086664,0.2,96064.0,96063.0,0.166556]
[1735202086866,0.30398632,96064.0,96063.0,0.166556]
[1735202087073,0.1,96055.0,96054.0,0.166571]
[1735202087269,0.1,96046.0,96045.0,0.166586]
[1735202087472,0.2,96046.0,96045.0,0.166586]
[1735202087678,0.2,96046.0,96045.0,0.29917398]
[1735202088091,0.30398632,96046.0,96045.0,0.13258598]
[1735202088291,0.1,96037.0,96036.0,0.166604]
[1735202088493,0.1,96037.0,96027.0,0.166619]
[1735202088494,0.2,96032.0,96031.0,0.166612]
[1735202089371,0.1,96032.0,96031.0,0.166612]
[1735202089745,0.2,96032.0,96031.0,0.166612]
[1735202089963,0.2,96032.0,96031.0,0.180612]
[1735202090169,0.30398632,96032.0,96031.0,0.005]
[1735202090367,0.2,96018.0,96017.0,0.166635]
[1735202090549,0.30398632,96018.0,96017.0,0.16679121]
[1735202092674,0.30398632,96018.0,96017.0,0.12879121]
[1735202093104,0.20398632,96018.0,96017.0,0.12979121]
[1735202093273,0.30398632,96018.0,96017.0,0.12879121]
[1735202093486,0.1,96018.0,96017.0,0.12879121]
[1735202093683,0.1,96018.0,96017.0,0.12979121]
[1735202093879,0.1,96018.0,96017.0,0.12879121]
[1735202094229,0.1,96018.0,96017.0,0.12979121]
[1735202094560,0.2,96018.0,96017.0,0.12979121]
[1735202095638,0.2,96018.0,96017.0,0.12879121]
[1735202095839,0.2,96018.0,96017.0,0.12979121]
[1735202095954,0.2,96018.0,96017.0,0.12879121]
[1735202096382,0.30398632,96018.0,96017.0,0.12979121]
[1735202096780,0.30398632,96018.0,96017.0,0.00115621]
[1735202097101,0.45398632,96018.0,96017.0,0.00015621]
[1735202097304,0.53498632,96018.0,96017.0,0.00015621]
[1735202097531,0.53498632,96018.0,96017.0,0.00115621]
[1735202097736,0.53498632,96018.0,95974.0,0.00112765]
[1735202097737,0.1,95986.0,95985.0,0.166691]
[1735202097945,0.1,95983.0,95974.0,8.59e-05]